[Event "Titled Tuesday Blitz May 24 Late 2022"]
[White "Mickiewicz, Piotr"]
[Black "Zhurbinsky, David"]
[WhiteFideId "1114891"]
[BlackFideId "2072904"]
[WhiteElo "2418"]
[BlackElo "2562"]
[Result "0-1"]
[Round "08"]
[TimeControl "180+1"]
[Date "2022.05.25"]
[WhiteClock "0:00:03"]
[BlackClock "0:00:16"]

1. e4 {[%clk 0:03:00]}  e5 {[%clk 0:03:00]} 2. Nf3 {[%clk 0:03:00]}  Nc6 {[%clk 0:03:00]} 3. Bb5 {[%clk 0:03:00]}  a6 {[%clk 0:03:01]} 4. Ba4 {[%clk 0:03:01]}  Nf6 {[%clk 0:03:02]} 5. O-O {[%clk 0:03:00]}  Be7 {[%clk 0:03:02]} 6. Qe2 {[%clk 0:03:00]}  b5 {[%clk 0:03:03]} 7. Bb3 {[%clk 0:02:59]}  O-O {[%clk 0:03:04]} 8. c3 {[%clk 0:02:58]}  d6 {[%clk 0:03:00]} 9. h3 {[%clk 0:02:57]}  Na5 {[%clk 0:02:59]} 10. Bc2 {[%clk 0:02:57]}  c5 {[%clk 0:02:59]} 11. d4 {[%clk 0:02:57]}  Qc7 {[%clk 0:02:55]} 12. d5 {[%clk 0:02:56]}  h6 {[%clk 0:02:43]} 13. b3 {[%clk 0:02:55]}  Nh7 {[%clk 0:02:37]} 14. Nbd2 {[%clk 0:02:52]}  c4 {[%clk 0:02:22]} 15. b4 {[%clk 0:02:49]}  Nb7 {[%clk 0:02:22]} 16. a4 {[%clk 0:02:50]}  Bd7 {[%clk 0:02:17]} 17. axb5 {[%clk 0:02:27]}  axb5 {[%clk 0:02:16]} 18. Bb2 {[%clk 0:02:27]}  Ng5 {[%clk 0:01:59]} 19. Nh2 {[%clk 0:02:26]}  Rxa1 {[%clk 0:01:26]} 20. Rxa1 {[%clk 0:02:25]}  f5 {[%clk 0:01:23]} 21. exf5 {[%clk 0:02:24]}  Bxf5 {[%clk 0:01:23]} 22. Bxf5 {[%clk 0:02:22]}  Rxf5 {[%clk 0:01:24]} 23. h4 {[%clk 0:02:17]}  Nh7 {[%clk 0:01:17]} 24. Ne4 {[%clk 0:01:58]}  Bxh4 {[%clk 0:01:04]} 25. Qg4 {[%clk 0:01:50]}  Rf4 {[%clk 0:01:04]} 26. Ra8+ {[%clk 0:01:30]}  Nf8 {[%clk 0:01:01]} 27. Qe2 {[%clk 0:00:56]}  Qf7 {[%clk 0:00:53]} 28. g3 {[%clk 0:00:54]}  Qg6 {[%clk 0:00:53]} 29. Nd2 {[%clk 0:00:38]}  Bxg3 {[%clk 0:00:48]} 30. fxg3 {[%clk 0:00:37]}  Qxg3+ {[%clk 0:00:48]} 31. Qg2 {[%clk 0:00:26]}  Qe3+ {[%clk 0:00:49]} 32. Kh1 {[%clk 0:00:24]}  Rf2 {[%clk 0:00:48]} 33. Ng4 {[%clk 0:00:09]}  Qe1+ {[%clk 0:00:34]} 34. Qg1 {[%clk 0:00:07]}  Qxg1+ {[%clk 0:00:34]} 35. Kxg1 {[%clk 0:00:07]}  Rxd2 {[%clk 0:00:35]} 36. Rb8 {[%clk 0:00:05]}  Rxb2 {[%clk 0:00:24]} 37. Rxb7 {[%clk 0:00:05]}  Rb3 {[%clk 0:00:22]} 38. Rxb5 {[%clk 0:00:04]}  Rxc3 {[%clk 0:00:23]} 39. Rb6 {[%clk 0:00:04]}  Rg3+ {[%clk 0:00:23]} 40. Kf2 {[%clk 0:00:04]}  Rxg4 {[%clk 0:00:24]} 41. Rxd6 {[%clk 0:00:01]}  c3 {[%clk 0:00:24]} 42. Rc6 {[%clk 0:00:01]}  Rxb4 {[%clk 0:00:25]} 43. Rxc3 {[%clk 0:00:02]}  Rd4 {[%clk 0:00:25]} 44. Rc5 {[%clk 0:00:02]}  Nd7 {[%clk 0:00:24]} 45. Rb5 {[%clk 0:00:02]}  Kf7 {[%clk 0:00:23]} 46. Ke3 {[%clk 0:00:03]}  Ke7 {[%clk 0:00:22]} 47. Ra5 {[%clk 0:00:03]}  Nb6 {[%clk 0:00:21]} 48. Ra6 {[%clk 0:00:03]}  Nxd5+ {[%clk 0:00:20]} 49. Kf3 {[%clk 0:00:03]}  e4+ {[%clk 0:00:20]} 50. Kg3 {[%clk 0:00:04]}  Rd3+ {[%clk 0:00:20]} 51. Kg4 {[%clk 0:00:04]}  Rf3 {[%clk 0:00:18]} 52. Ra7+ {[%clk 0:00:03]}  Kf6 {[%clk 0:00:18]} 53. Ra8 {[%clk 0:00:04]}  Ne3+ {[%clk 0:00:17]} 54. Kh5 {[%clk 0:00:03]}  Rh3# {[%clk 0:00:16]} 0-1


[Site "https://www.chess.com"]

[Event "Titled Tuesday Blitz May 24 Late 2022"]
[White "Mikhalsky, Vladimir"]
[Black "Golubev, Mikhail"]
[WhiteFideId "14144352"]
[BlackFideId "14100983"]
[WhiteElo "2434"]
[BlackElo "2597"]
[Result "1/2-1/2"]
[Round "08"]
[TimeControl "180+1"]
[Date "2022.05.25"]
[WhiteClock "0:00:17"]
[BlackClock "0:00:04"]

1. d4 {[%clk 0:02:48]}  Nf6 {[%clk 0:02:58]} 2. c4 {[%clk 0:02:48]}  g6 {[%clk 0:02:58]} 3. f3 {[%clk 0:02:48]}  Bg7 {[%clk 0:02:58]} 4. e4 {[%clk 0:02:48]}  d6 {[%clk 0:02:58]} 5. Nc3 {[%clk 0:02:48]}  O-O {[%clk 0:02:58]} 6. Be3 {[%clk 0:02:48]}  a6 {[%clk 0:02:57]} 7. Rb1 {[%clk 0:02:46]}  Nc6 {[%clk 0:02:53]} 8. Nge2 {[%clk 0:02:41]}  Bd7 {[%clk 0:02:45]} 9. Qd2 {[%clk 0:02:40]}  Qb8 {[%clk 0:02:40]} 10. b4 {[%clk 0:02:36]}  b5 {[%clk 0:02:39]} 11. cxb5 {[%clk 0:02:35]}  axb5 {[%clk 0:02:39]} 12. d5 {[%clk 0:02:35]}  Ne5 {[%clk 0:02:38]} 13. Nd4 {[%clk 0:02:34]}  c6 {[%clk 0:02:21]} 14. dxc6 {[%clk 0:02:32]}  Nxc6 {[%clk 0:02:21]} 15. Ndxb5 {[%clk 0:02:24]}  Rc8 {[%clk 0:02:15]} 16. Be2 {[%clk 0:02:15]}  Ne5 {[%clk 0:02:15]} 17. a4 {[%clk 0:02:03]}  Nc4 {[%clk 0:02:10]} 18. Bxc4 {[%clk 0:02:03]}  Rxc4 {[%clk 0:02:11]} 19. O-O {[%clk 0:02:00]}  Bxb5 {[%clk 0:02:06]} 20. axb5 {[%clk 0:01:51]}  Ra3 {[%clk 0:02:00]} 21. Ne2 {[%clk 0:01:32]}  Qxb5 {[%clk 0:01:51]} 22. Rfc1 {[%clk 0:01:31]}  Rxc1+ {[%clk 0:01:43]} 23. Rxc1 {[%clk 0:01:31]}  h5 {[%clk 0:01:20]} 24. Nd4 {[%clk 0:01:29]}  Qb7 {[%clk 0:01:00]} 25. Nc6 {[%clk 0:01:24]}  Kh7 {[%clk 0:00:52]} 26. h3 {[%clk 0:01:13]}  Qa6 {[%clk 0:00:34]} 27. Nxe7 {[%clk 0:01:04]}  Ra2 {[%clk 0:00:29]} 28. Rc2 {[%clk 0:01:03]}  Ra1+ {[%clk 0:00:25]} 29. Kh2 {[%clk 0:01:00]}  Qf1 {[%clk 0:00:24]} 30. Rc1 {[%clk 0:00:41]}  Rxc1 {[%clk 0:00:06]} 31. Qxc1 {[%clk 0:00:41]}  Qe2 {[%clk 0:00:04]} 32. Qd2 {[%clk 0:00:40]}  Qf1 {[%clk 0:00:04]} 33. Nc8 {[%clk 0:00:36]}  h4 {[%clk 0:00:04]} 34. Nxd6 {[%clk 0:00:34]}  Nh5 {[%clk 0:00:04]} 35. f4 {[%clk 0:00:17]}  Ng3 {[%clk 0:00:03]} 36. Bg1 {[%clk 0:00:18]}  Qa6 {[%clk 0:00:02]} 37. b5 {[%clk 0:00:17]}  Nf1+ {[%clk 0:00:02]} 38. Kh1 {[%clk 0:00:16]}  Ng3+ {[%clk 0:00:02]} 39. Kh2 {[%clk 0:00:16]}  Nf1+ {[%clk 0:00:03]} 40. Kh1 {[%clk 0:00:16]}  Ng3+ {[%clk 0:00:04]} 41. Kh2 {[%clk 0:00:17]} 1/2-1/2


[Site "https://www.chess.com"]

[Event "Titled Tuesday Blitz May 24 Late 2022"]
[White "Novikova, Galina"]
[Black "Roque Sola, Gisela"]
[WhiteFideId "4157095"]
[BlackFideId "5120241"]
[WhiteElo "1863"]
[BlackElo "1863"]
[Result "1-0"]
[Round "08"]
[TimeControl "180+1"]
[Date "2022.05.25"]
[WhiteClock "0:02:29"]
[BlackClock "0:01:30"]

1. e4 {[%clk 0:03:00]}  e6 {[%clk 0:02:54]} 2. Nf3 {[%clk 0:02:58]}  d5 {[%clk 0:02:52]} 3. e5 {[%clk 0:02:59]}  c5 {[%clk 0:02:51]} 4. b4 {[%clk 0:02:59]}  b6 {[%clk 0:02:49]} 5. bxc5 {[%clk 0:02:58]}  bxc5 {[%clk 0:02:49]} 6. c3 {[%clk 0:02:59]}  Ne7 {[%clk 0:02:42]} 7. d4 {[%clk 0:03:00]}  Nf5 {[%clk 0:02:37]} 8. Bd3 {[%clk 0:02:59]}  cxd4 {[%clk 0:02:32]} 9. cxd4 {[%clk 0:03:00]}  Bd7 {[%clk 0:02:28]} 10. O-O {[%clk 0:02:59]}  g6 {[%clk 0:02:26]} 11. Bg5 {[%clk 0:02:57]}  Be7 {[%clk 0:02:26]} 12. Bxe7 {[%clk 0:02:55]}  Qxe7 {[%clk 0:02:25]} 13. Nbd2 {[%clk 0:02:56]}  Nc6 {[%clk 0:02:25]} 14. Nb3 {[%clk 0:02:56]}  O-O {[%clk 0:02:16]} 15. Rc1 {[%clk 0:02:54]}  Rfc8 {[%clk 0:02:13]} 16. Bxf5 {[%clk 0:02:54]}  gxf5 {[%clk 0:02:10]} 17. Nc5 {[%clk 0:02:54]}  Rab8 {[%clk 0:01:54]} 18. Qd2 {[%clk 0:02:52]}  Kh8 {[%clk 0:01:50]} 19. Qh6 {[%clk 0:02:49]}  Rg8 {[%clk 0:01:41]} 20. Nxd7 {[%clk 0:02:37]}  Qxd7 {[%clk 0:01:40]} 21. Ng5 {[%clk 0:02:38]}  Rg7 {[%clk 0:01:37]} 22. Qf6 {[%clk 0:02:38]}  Nxd4 {[%clk 0:01:31]} 23. Rcd1 {[%clk 0:02:30]}  Ne2+ {[%clk 0:01:30]} 24. Kh1 {[%clk 0:02:30]}  Qd8 {[%clk 0:01:30]} 25. Nxf7+ {[%clk 0:02:29]} 1-0


[Site "https://www.chess.com"]

[Event "Titled Tuesday Blitz May 24 Late 2022"]
[White "O`Gorman, Tom"]
[Black "Przybylski, Wojciech"]
[WhiteFideId "2508249"]
[BlackFideId "1117599"]
[WhiteElo "2617"]
[BlackElo "2491"]
[Result "1/2-1/2"]
[Round "08"]
[TimeControl "180+1"]
[Date "2022.05.25"]
[WhiteClock "0:00:28"]
[BlackClock "0:00:10"]

1. c4 {[%clk 0:03:00]}  Nf6 {[%clk 0:02:56]} 2. Nc3 {[%clk 0:03:00]}  e5 {[%clk 0:02:48]} 3. Nf3 {[%clk 0:02:56]}  Nc6 {[%clk 0:02:48]} 4. e4 {[%clk 0:02:56]}  Be7 {[%clk 0:02:44]} 5. Be2 {[%clk 0:02:49]}  O-O {[%clk 0:02:44]} 6. O-O {[%clk 0:02:48]}  Re8 {[%clk 0:02:44]} 7. d3 {[%clk 0:02:44]}  d6 {[%clk 0:02:41]} 8. Ne1 {[%clk 0:02:37]}  Nd4 {[%clk 0:02:40]} 9. f4 {[%clk 0:02:35]}  exf4 {[%clk 0:02:36]} 10. Bxf4 {[%clk 0:02:34]}  c6 {[%clk 0:02:34]} 11. Nf3 {[%clk 0:02:34]}  Nxe2+ {[%clk 0:02:32]} 12. Qxe2 {[%clk 0:02:35]}  Bg4 {[%clk 0:02:29]} 13. h3 {[%clk 0:02:34]}  Bh5 {[%clk 0:02:30]} 14. Rae1 {[%clk 0:01:57]}  Qc7 {[%clk 0:02:24]} 15. g4 {[%clk 0:01:53]}  Bg6 {[%clk 0:02:23]} 16. Qh2 {[%clk 0:01:53]}  Bf8 {[%clk 0:02:17]} 17. Kh1 {[%clk 0:01:47]}  Rad8 {[%clk 0:02:08]} 18. Rg1 {[%clk 0:01:43]}  Qa5 {[%clk 0:01:58]} 19. h4 {[%clk 0:01:41]}  h5 {[%clk 0:01:54]} 20. gxh5 {[%clk 0:01:35]}  Nxh5 {[%clk 0:01:53]} 21. Bd2 {[%clk 0:01:33]}  Qb6 {[%clk 0:01:46]} 22. Be3 {[%clk 0:01:31]}  Qa5 {[%clk 0:01:46]} 23. Ng5 {[%clk 0:01:28]}  d5 {[%clk 0:01:38]} 24. cxd5 {[%clk 0:01:22]}  cxd5 {[%clk 0:01:38]} 25. Nxd5 {[%clk 0:01:21]}  Rxd5 {[%clk 0:01:37]} 26. exd5 {[%clk 0:01:22]}  Qxd5+ {[%clk 0:01:37]} 27. Qg2 {[%clk 0:01:20]}  Qxd3 {[%clk 0:01:36]} 28. Bf2 {[%clk 0:01:11]}  Qd7 {[%clk 0:00:54]} 29. Rxe8 {[%clk 0:01:01]}  Qxe8 {[%clk 0:00:54]} 30. Qxb7 {[%clk 0:00:57]}  Qe2 {[%clk 0:00:50]} 31. Qxa7 {[%clk 0:00:52]}  f6 {[%clk 0:00:23]} 32. Qe3 {[%clk 0:00:42]}  Qa6 {[%clk 0:00:15]} 33. Qe6+ {[%clk 0:00:31]}  Qxe6 {[%clk 0:00:15]} 34. Nxe6 {[%clk 0:00:32]}  Be4+ {[%clk 0:00:15]} 35. Rg2 {[%clk 0:00:29]}  Bd6 {[%clk 0:00:09]} 36. Kg1 {[%clk 0:00:29]}  Nf4 {[%clk 0:00:08]} 37. Nxf4 {[%clk 0:00:28]}  Bxf4 {[%clk 0:00:08]} 38. Rg4 {[%clk 0:00:28]}  g5 {[%clk 0:00:06]} 39. hxg5 {[%clk 0:00:28]}  fxg5 {[%clk 0:00:06]} 40. Bg3 {[%clk 0:00:27]}  Bf3 {[%clk 0:00:07]} 41. Rxf4 {[%clk 0:00:24]}  gxf4 {[%clk 0:00:06]} 42. Bxf4 {[%clk 0:00:25]}  Bd5 {[%clk 0:00:06]} 43. a4 {[%clk 0:00:23]}  Bb3 {[%clk 0:00:05]} 44. a5 {[%clk 0:00:23]}  Kf7 {[%clk 0:00:05]} 45. Kf2 {[%clk 0:00:20]}  Ke6 {[%clk 0:00:05]} 46. a6 {[%clk 0:00:19]}  Bc4 {[%clk 0:00:04]} 47. a7 {[%clk 0:00:18]}  Bd5 {[%clk 0:00:05]} 48. Ke3 {[%clk 0:00:18]}  Kd7 {[%clk 0:00:05]} 49. Kd4 {[%clk 0:00:19]}  Bf3 {[%clk 0:00:05]} 50. Kc5 {[%clk 0:00:19]}  Kc8 {[%clk 0:00:06]} 51. Kb6 {[%clk 0:00:20]}  Be4 {[%clk 0:00:05]} 52. Be5 {[%clk 0:00:19]}  Bf3 {[%clk 0:00:06]} 53. b4 {[%clk 0:00:20]}  Be4 {[%clk 0:00:06]} 54. b5 {[%clk 0:00:21]}  Bf3 {[%clk 0:00:07]} 55. Ka6 {[%clk 0:00:21]}  Bg2 {[%clk 0:00:07]} 56. Kb6 {[%clk 0:00:21]}  Bf3 {[%clk 0:00:07]} 57. Ka5 {[%clk 0:00:22]}  Kb7 {[%clk 0:00:07]} 58. b6 {[%clk 0:00:22]}  Ka8 {[%clk 0:00:07]} 59. Bc7 {[%clk 0:00:22]}  Bb7 {[%clk 0:00:07]} 60. Kb5 {[%clk 0:00:22]}  Bh1 {[%clk 0:00:07]} 61. Kc5 {[%clk 0:00:23]}  Bb7 {[%clk 0:00:08]} 62. Kd6 {[%clk 0:00:24]}  Bh1 {[%clk 0:00:08]} 63. Kd7 {[%clk 0:00:25]}  Bb7 {[%clk 0:00:09]} 64. Kd8 {[%clk 0:00:26]}  Bh1 {[%clk 0:00:09]} 65. Kd7 {[%clk 0:00:26]}  Bb7 {[%clk 0:00:10]} 66. Kd8 {[%clk 0:00:27]}  Bh1 {[%clk 0:00:10]} 67. Kd7 {[%clk 0:00:28]} 1/2-1/2


[Site "https://www.chess.com"]

[Event "Titled Tuesday Blitz May 24 Late 2022"]
[White "Papasimakopoulos, Alexandros"]
[Black "Larino Nieto, David"]
[WhiteFideId "4244125"]
[BlackFideId "2256444"]
[WhiteElo "2340"]
[BlackElo "2532"]
[Result "0-1"]
[Round "08"]
[TimeControl "180+1"]
[Date "2022.05.24"]
[WhiteClock "0:00:04"]
[BlackClock "0:00:09"]

1. d4 {[%clk 0:03:00]}  e6 {[%clk 0:02:59]} 2. c4 {[%clk 0:03:00]}  b6 {[%clk 0:02:59]} 3. e4 {[%clk 0:02:59]}  Bb7 {[%clk 0:03:00]} 4. Bd3 {[%clk 0:02:58]}  Ne7 {[%clk 0:02:59]} 5. Nf3 {[%clk 0:02:57]}  d6 {[%clk 0:02:59]} 6. O-O {[%clk 0:02:56]}  Nd7 {[%clk 0:03:00]} 7. Nc3 {[%clk 0:02:56]}  h6 {[%clk 0:03:00]} 8. Re1 {[%clk 0:02:51]}  g5 {[%clk 0:03:01]} 9. d5 {[%clk 0:02:45]}  Bg7 {[%clk 0:02:59]} 10. h3 {[%clk 0:02:36]}  Ng6 {[%clk 0:02:57]} 11. Bf1 {[%clk 0:02:33]}  Nde5 {[%clk 0:02:54]} 12. Nd4 {[%clk 0:02:28]}  Qe7 {[%clk 0:02:48]} 13. Qa4+ {[%clk 0:02:27]}  Kf8 {[%clk 0:02:31]} 14. Be3 {[%clk 0:02:16]}  h5 {[%clk 0:02:27]} 15. g3 {[%clk 0:02:10]}  g4 {[%clk 0:02:24]} 16. h4 {[%clk 0:02:10]}  Nf3+ {[%clk 0:02:22]} 17. Nxf3 {[%clk 0:02:09]}  gxf3 {[%clk 0:02:23]} 18. Qd1 {[%clk 0:02:05]}  Nxh4 {[%clk 0:02:12]} 19. gxh4 {[%clk 0:01:55]}  Rg8 {[%clk 0:01:51]} 20. Bg5 {[%clk 0:01:50]}  Bxc3 {[%clk 0:01:41]} 21. Qxf3 {[%clk 0:01:29]}  Bf6 {[%clk 0:01:39]} 22. Bg2 {[%clk 0:01:15]}  Bxg5 {[%clk 0:01:36]} 23. hxg5 {[%clk 0:01:15]}  e5 {[%clk 0:01:31]} 24. Qxh5 {[%clk 0:01:12]}  Qxg5 {[%clk 0:01:26]} 25. Qxg5 {[%clk 0:01:10]}  Rxg5 {[%clk 0:01:27]} 26. Kf1 {[%clk 0:01:10]}  Ke7 {[%clk 0:01:25]} 27. Bh3 {[%clk 0:01:08]}  Rh8 {[%clk 0:01:23]} 28. Bf5 {[%clk 0:01:07]}  Ba6 {[%clk 0:01:09]} 29. b3 {[%clk 0:01:07]}  b5 {[%clk 0:01:09]} 30. Rac1 {[%clk 0:01:07]}  bxc4 {[%clk 0:01:09]} 31. bxc4 {[%clk 0:01:08]}  Rh1+ {[%clk 0:01:07]} 32. Ke2 {[%clk 0:01:02]}  Rxe1+ {[%clk 0:01:07]} 33. Rxe1 {[%clk 0:01:01]}  Bxc4+ {[%clk 0:01:06]} 34. Ke3 {[%clk 0:00:58]}  Bxd5 {[%clk 0:01:03]} 35. exd5 {[%clk 0:00:37]}  Rxf5 {[%clk 0:01:02]} 36. Rb1 {[%clk 0:00:37]}  Kd7 {[%clk 0:00:56]} 37. Rb7 {[%clk 0:00:37]}  e4 {[%clk 0:00:48]} 38. Kxe4 {[%clk 0:00:35]}  Rxf2 {[%clk 0:00:46]} 39. Rxa7 {[%clk 0:00:34]}  f5+ {[%clk 0:00:44]} 40. Ke3 {[%clk 0:00:33]}  Rc2 {[%clk 0:00:43]} 41. Ra8 {[%clk 0:00:30]}  Rc3+ {[%clk 0:00:36]} 42. Kd4 {[%clk 0:00:29]}  Rc1 {[%clk 0:00:37]} 43. a4 {[%clk 0:00:24]}  Ra1 {[%clk 0:00:31]} 44. a5 {[%clk 0:00:24]}  f4 {[%clk 0:00:31]} 45. Kc4 {[%clk 0:00:19]}  f3 {[%clk 0:00:30]} 46. Rf8 {[%clk 0:00:12]}  Rxa5 {[%clk 0:00:26]} 47. Rf7+ {[%clk 0:00:12]}  Kc8 {[%clk 0:00:25]} 48. Rxf3 {[%clk 0:00:13]}  Rc5+ {[%clk 0:00:24]} 49. Kd4 {[%clk 0:00:13]}  Rc1 {[%clk 0:00:25]} 50. Rb3 {[%clk 0:00:11]}  Rh1 {[%clk 0:00:23]} 51. Rg3 {[%clk 0:00:10]}  Rh4+ {[%clk 0:00:23]} 52. Kc3 {[%clk 0:00:10]}  Kb7 {[%clk 0:00:23]} 53. Rg7 {[%clk 0:00:08]}  Kb6 {[%clk 0:00:23]} 54. Rf7 {[%clk 0:00:08]}  Re4 {[%clk 0:00:23]} 55. Kd3 {[%clk 0:00:08]}  Ra4 {[%clk 0:00:22]} 56. Kc3 {[%clk 0:00:07]}  Ra1 {[%clk 0:00:20]} 57. Kc4 {[%clk 0:00:07]}  Rd1 {[%clk 0:00:19]} 58. Rh7 {[%clk 0:00:05]}  Rc1+ {[%clk 0:00:18]} 59. Kd4 {[%clk 0:00:05]}  Kb5 {[%clk 0:00:17]} 60. Rg7 {[%clk 0:00:05]}  Rc4+ {[%clk 0:00:16]} 61. Kd3 {[%clk 0:00:05]}  Kb4 {[%clk 0:00:16]} 62. Rf7 {[%clk 0:00:04]}  Kb3 {[%clk 0:00:16]} 63. Rg7 {[%clk 0:00:04]}  Rc5 {[%clk 0:00:16]} 64. Kd4 {[%clk 0:00:05]}  Kb4 {[%clk 0:00:15]} 65. Rh7 {[%clk 0:00:03]}  Kb5 {[%clk 0:00:10]} 66. Rg7 {[%clk 0:00:03]}  Kb6 {[%clk 0:00:10]} 67. Rf7 {[%clk 0:00:03]}  Ra5 {[%clk 0:00:11]} 68. Rg7 {[%clk 0:00:03]}  Ra4+ {[%clk 0:00:10]} 69. Kd3 {[%clk 0:00:04]}  Rh4 {[%clk 0:00:10]} 70. Rf7 {[%clk 0:00:04]}  Rh8 {[%clk 0:00:09]} 71. Kd4 {[%clk 0:00:05]}  Rd8 {[%clk 0:00:09]} 72. Rg7 {[%clk 0:00:05]}  Kb7 {[%clk 0:00:10]} 73. Rf7 {[%clk 0:00:05]}  Kc8 {[%clk 0:00:10]} 74. Rg7 {[%clk 0:00:05]}  Rd7 {[%clk 0:00:11]} 75. Rg8+ {[%clk 0:00:05]}  Kb7 {[%clk 0:00:11]} 76. Kc4 {[%clk 0:00:06]}  Rh7 {[%clk 0:00:10]} 77. Kc3 {[%clk 0:00:05]}  Kb6 {[%clk 0:00:09]} 78. Rc8 {[%clk 0:00:04]}  Kc5 {[%clk 0:00:09]} 0-1


[Site "https://www.chess.com"]

[Event "Titled Tuesday Blitz May 24 Late 2022"]
[White "Peralta, Eduardo"]
[Black "Halak, Miklos"]
[WhiteFideId "3700062"]
[BlackFideId "726400"]
[WhiteElo "2574"]
[BlackElo "2442"]
[Result "1-0"]
[Round "08"]
[TimeControl "180+1"]
[Date "2022.05.25"]
[WhiteClock "0:01:05"]
[BlackClock "0:00:02"]

1. Nf3 {[%clk 0:02:52]}  d5 {[%clk 0:02:59]} 2. g3 {[%clk 0:02:51]}  c6 {[%clk 0:02:59]} 3. Bg2 {[%clk 0:02:52]}  Bf5 {[%clk 0:02:59]} 4. O-O {[%clk 0:02:52]}  e6 {[%clk 0:03:00]} 5. c4 {[%clk 0:02:52]}  Nf6 {[%clk 0:03:01]} 6. cxd5 {[%clk 0:02:50]}  exd5 {[%clk 0:03:01]} 7. Nc3 {[%clk 0:02:51]}  Be7 {[%clk 0:03:01]} 8. d3 {[%clk 0:02:49]}  O-O {[%clk 0:02:58]} 9. Qb3 {[%clk 0:02:49]}  Qb6 {[%clk 0:02:57]} 10. Qc2 {[%clk 0:02:50]}  h6 {[%clk 0:02:57]} 11. e4 {[%clk 0:02:50]}  dxe4 {[%clk 0:02:55]} 12. dxe4 {[%clk 0:02:51]}  Bh7 {[%clk 0:02:55]} 13. Nh4 {[%clk 0:02:52]}  Nbd7 {[%clk 0:02:47]} 14. Be3 {[%clk 0:02:50]}  Bc5 {[%clk 0:02:41]} 15. Na4 {[%clk 0:02:49]}  Bxe3 {[%clk 0:02:32]} 16. Nxb6 {[%clk 0:02:47]}  Bxb6 {[%clk 0:02:33]} 17. Rad1 {[%clk 0:02:43]}  Nc5 {[%clk 0:02:27]} 18. Nf5 {[%clk 0:02:41]}  Bxf5 {[%clk 0:02:21]} 19. exf5 {[%clk 0:02:41]}  a5 {[%clk 0:02:10]} 20. Rfe1 {[%clk 0:02:34]}  Rfe8 {[%clk 0:01:46]} 21. Kf1 {[%clk 0:02:22]}  Ng4 {[%clk 0:01:42]} 22. h3 {[%clk 0:02:06]}  Nf6 {[%clk 0:01:20]} 23. g4 {[%clk 0:02:02]}  Rac8 {[%clk 0:01:11]} 24. Bf3 {[%clk 0:02:00]}  Nfd7 {[%clk 0:00:54]} 25. Qc3 {[%clk 0:01:47]}  Nf6 {[%clk 0:00:32]} 26. h4 {[%clk 0:01:43]}  Rxe1+ {[%clk 0:00:22]} 27. Rxe1 {[%clk 0:01:41]}  Rd8 {[%clk 0:00:22]} 28. g5 {[%clk 0:01:34]}  hxg5 {[%clk 0:00:22]} 29. hxg5 {[%clk 0:01:34]}  Nd5 {[%clk 0:00:22]} 30. Bxd5 {[%clk 0:01:20]}  cxd5 {[%clk 0:00:22]} 31. g6 {[%clk 0:01:20]}  Ne4 {[%clk 0:00:19]} 32. Qh3 {[%clk 0:01:12]}  fxg6 {[%clk 0:00:14]} 33. fxg6 {[%clk 0:01:11]}  Kf8 {[%clk 0:00:05]} 34. Qe6 {[%clk 0:01:05]}  Bd4 {[%clk 0:00:02]} 35. Qf7# {[%clk 0:01:05]} 1-0


[Site "https://www.chess.com"]

[Event "Titled Tuesday Blitz May 24 Late 2022"]
[White "Petrovic, Aleksa"]
[Black "Romero Ruscalleda, Josep"]
[WhiteFideId "967629"]
[BlackFideId "2231859"]
[WhiteElo "2144"]
[BlackElo "2308"]
[Result "1-0"]
[Round "08"]
[TimeControl "180+1"]
[Date "2022.05.25"]
[WhiteClock "0:00:04"]
[BlackClock "0:00:02"]

1. d4 {[%clk 0:03:00]}  g6 {[%clk 0:03:00]} 2. c4 {[%clk 0:02:59]}  Bg7 {[%clk 0:03:01]} 3. e4 {[%clk 0:02:57]}  d6 {[%clk 0:03:01]} 4. Nc3 {[%clk 0:02:56]}  e5 {[%clk 0:03:01]} 5. Nge2 {[%clk 0:02:53]}  Nc6 {[%clk 0:03:00]} 6. Be3 {[%clk 0:02:52]}  exd4 {[%clk 0:03:00]} 7. Nxd4 {[%clk 0:02:52]}  Nge7 {[%clk 0:03:01]} 8. h4 {[%clk 0:02:51]}  h5 {[%clk 0:02:57]} 9. Qd2 {[%clk 0:02:50]}  Bd7 {[%clk 0:02:48]} 10. O-O-O {[%clk 0:02:43]}  a6 {[%clk 0:02:40]} 11. Nd5 {[%clk 0:02:29]}  Nxd5 {[%clk 0:02:28]} 12. cxd5 {[%clk 0:02:11]}  Nxd4 {[%clk 0:02:27]} 13. Bxd4 {[%clk 0:02:10]}  Bh6 {[%clk 0:02:28]} 14. f4 {[%clk 0:02:05]}  O-O {[%clk 0:02:23]} 15. Bd3 {[%clk 0:01:53]}  c5 {[%clk 0:01:56]} 16. Be3 {[%clk 0:01:42]}  c4 {[%clk 0:01:48]} 17. Bc2 {[%clk 0:01:36]}  Bg4 {[%clk 0:01:45]} 18. Rde1 {[%clk 0:01:27]}  Rc8 {[%clk 0:01:45]} 19. f5 {[%clk 0:01:21]}  Bg7 {[%clk 0:01:42]} 20. Bd4 {[%clk 0:00:52]}  Bxd4 {[%clk 0:01:06]} 21. Qxd4 {[%clk 0:00:53]}  c3 {[%clk 0:01:00]} 22. fxg6 {[%clk 0:00:39]}  fxg6 {[%clk 0:00:49]} 23. e5 {[%clk 0:00:38]}  cxb2+ {[%clk 0:00:44]} 24. Kb1 {[%clk 0:00:31]}  dxe5 {[%clk 0:00:33]} 25. Rxe5 {[%clk 0:00:29]}  Qc7 {[%clk 0:00:23]} 26. Qxb2 {[%clk 0:00:28]}  Rf2 {[%clk 0:00:19]} 27. Rc1 {[%clk 0:00:20]}  Bf5 {[%clk 0:00:17]} 28. d6 {[%clk 0:00:18]}  Qxc2+ {[%clk 0:00:15]} 29. Rxc2 {[%clk 0:00:16]}  Rfxc2 {[%clk 0:00:15]} 30. Qb3+ {[%clk 0:00:12]}  Kh8 {[%clk 0:00:12]} 31. d7 {[%clk 0:00:10]}  Rc1+ {[%clk 0:00:09]} 32. Kb2 {[%clk 0:00:10]}  Bxd7 {[%clk 0:00:07]} 33. Re2 {[%clk 0:00:06]}  Bf5 {[%clk 0:00:04]} 34. Qe3 {[%clk 0:00:05]}  Rb1+ {[%clk 0:00:02]} 35. Ka3 {[%clk 0:00:04]} 1-0


[Site "https://www.chess.com"]

[Event "Titled Tuesday Blitz May 24 Late 2022"]
[White "Pranav, V"]
[Black "Csonka, Balazs"]
[WhiteFideId "25060783"]
[BlackFideId "742910"]
[WhiteElo "2349"]
[BlackElo "2404"]
[Result "1-0"]
[Round "08"]
[TimeControl "180+1"]
[Date "2022.05.24"]
[WhiteClock "0:02:17"]
[BlackClock "0:00:13"]

1. Nf3 {[%clk 0:03:00]}  Nf6 {[%clk 0:02:58]} 2. g3 {[%clk 0:03:01]}  d5 {[%clk 0:02:54]} 3. Bg2 {[%clk 0:03:01]}  c5 {[%clk 0:02:54]} 4. O-O {[%clk 0:03:01]}  Nc6 {[%clk 0:02:55]} 5. d3 {[%clk 0:03:01]}  g6 {[%clk 0:02:51]} 6. Nbd2 {[%clk 0:03:02]}  Bg7 {[%clk 0:02:51]} 7. e4 {[%clk 0:03:02]}  O-O {[%clk 0:02:52]} 8. exd5 {[%clk 0:03:01]}  Nxd5 {[%clk 0:02:51]} 9. Re1 {[%clk 0:03:02]}  b6 {[%clk 0:02:48]} 10. Nc4 {[%clk 0:03:02]}  Bb7 {[%clk 0:02:49]} 11. c3 {[%clk 0:03:02]}  Qc7 {[%clk 0:02:43]} 12. h4 {[%clk 0:03:01]}  h5 {[%clk 0:02:31]} 13. Ng5 {[%clk 0:02:59]}  Rad8 {[%clk 0:02:28]} 14. Qe2 {[%clk 0:02:57]}  e5 {[%clk 0:01:53]} 15. a4 {[%clk 0:02:47]}  Rfe8 {[%clk 0:01:48]} 16. Bd2 {[%clk 0:02:43]}  Re7 {[%clk 0:01:22]} 17. Ne4 {[%clk 0:02:38]}  Red7 {[%clk 0:01:18]} 18. Rad1 {[%clk 0:02:30]}  Nce7 {[%clk 0:01:03]} 19. Bh3 {[%clk 0:02:28]}  f5 {[%clk 0:00:58]} 20. Ng5 {[%clk 0:02:25]}  Qc6 {[%clk 0:00:53]} 21. f3 {[%clk 0:02:25]}  Ba6 {[%clk 0:00:23]} 22. Nxe5 {[%clk 0:02:23]}  Bxe5 {[%clk 0:00:22]} 23. Qxe5 {[%clk 0:02:24]}  Qf6 {[%clk 0:00:18]} 24. Qe2 {[%clk 0:02:17]}  Nc7 {[%clk 0:00:14]} 25. c4 {[%clk 0:02:15]}  Nc6 {[%clk 0:00:12]} 26. Bc3 {[%clk 0:02:15]}  Nd4 {[%clk 0:00:13]} 27. Bxd4 {[%clk 0:02:16]}  Qxd4+ {[%clk 0:00:12]} 28. Kh2 {[%clk 0:02:16]}  Re8 {[%clk 0:00:12]} 29. Qxe8+ {[%clk 0:02:15]}  Nxe8 {[%clk 0:00:12]} 30. Rxe8+ {[%clk 0:02:16]}  Kg7 {[%clk 0:00:11]} 31. Ne6+ {[%clk 0:02:16]}  Kf7 {[%clk 0:00:12]} 32. Nxd4 {[%clk 0:02:16]}  Kxe8 {[%clk 0:00:13]} 33. Nb5 {[%clk 0:02:17]} 1-0


[Site "https://www.chess.com"]